[Event "20th Cvijet Mediterana 2020"]
[Site "Rijeka"]
[Date "2020.03.03"]
[Round "4.2"]
[White "Medic, Mirjana"]
[Black "Doluhanova, Evgeniya"]
[Result "1/2-1/2"]
[ECO "E12"]
[WhiteElo "2210"]
[BlackElo "2258"]
[Annotator "ChessBase"]
[PlyCount "60"]
[EventDate "2020.03.01"]
[EventType "tourn"]
[EventCountry "CRO"]
[SourceTitle "playchess.com"]
[Source "ChessBase"]
[SourceQuality "1"]
[TimeControl "5400+30"]

1. d4 Nf6 2. Nf3 b6 3. c4 e6 4. a3 Bb7 5. Nc3 d5 6. Bg5 Be7 7. e3 O-O 8. Rc1 Nbd7 9. cxd5 exd5 10. Bd3 Ne4 11. Bxe7 Qxe7 12. O-O Ndf6 13. Qe2 Rac8 14. b4 c5 15. bxc5 bxc5 16. dxc5 Rxc5 17. Qb2 Rfc8 18. Ne2 Rxc1 19. Rxc1 Rxc1+ 20. Nxc1 Ng4 21. Bxe4 dxe4 22. Nd4 Qc7 23. g3 Ne5 24. Nce2 h6 25. Kg2 Nd3 26. Qb5 Ne1+ 27. Kf1 Nf3 28. Kg2 Ne1+ 29. Kf1 Nf3 30. Kg2 Ne1+ 1/2-1/2

[Event "20th Cvijet Mediterana 2020"]
[Site "Rijeka"]
[Date "2020.03.05"]
[Round "7.4"]
[White "Smirnova, Ekaterina"]
[Black "Hrescak, Ivana"]
[Result "0-1"]
[ECO "E97"]
[WhiteElo "2266"]
[BlackElo "2182"]
[Annotator "RC"]
[PlyCount "62"]
[EventDate "2020.03.01"]
[EventType "tourn"]
[EventCountry "CRO"]
[SourceTitle "playchess.com"]
[Source "ChessBase"]
[SourceQuality "1"]
[TimeControl "5400+30"]

1. d4 {[%emt 0:00:00]} Nf6 {[%emt 0:00:00]} 2. c4 {[%emt 0:00:00]} g6 {[%emt 0:00:00]} 3. Nc3 {[%emt 0:00:00]} Bg7 {[%emt 0:00:00]} 4. e4 {[%emt 0:00:00]} d6 {[%emt 0:00:00]} 5. Nf3 {[%emt 0:00:00]} O-O {[%emt 0:00:01]} 6. Be2 {[%emt 0:00:00]} e5 {[%emt 0:00:06]} 7. O-O {[%emt 0:00:00]} Nc6 {[%emt 0:00:03]} 8. d5 {[%emt 0:00:00]} Ne7 {[%emt 0:00:05]} 9. b4 {[%emt 0:00:01]} a5 {[%emt 0:02:02]} 10. Ba3 {[%emt 0:00:01]} axb4 {[%emt 0:00:49]} 11. Bxb4 {[%emt 0:00:01]} Nd7 {[%emt 0:00:36]} 12. a4 {[%emt 0:06:27]} h6 {[%emt 0:03:02]} 13. a5 {[%emt 0:03:21]} f5 {[%emt 0:00:14]} 14. Nd2 {[%emt 0:01:04]} fxe4 {[%emt 0:01:30]} 15. Ndxe4 {[%emt 0:01:15]} Nf5 {[%emt 0:00:16]} 16. c5 {[%emt 0:03:26]} dxc5 {[%emt 0:02:02]} 17. Nxc5 {[%emt 0:00:14]} Nxc5 {[%emt 0:00:46]} 18. Bxc5 {[%emt 0:00:01]} Re8 {[%emt 0:01:34]} 19. Ne4 {[%emt 0:01:21]} Nd4 {[%emt 0:05:10]} 20. Bc4 {[%emt 0:00:47]} Kh7 {[%emt 0:01:15]} 21. Qd3 {[%emt 0:07:25]} Bf5 {[%emt 0:04:30]} 22. Rfb1 {[%emt 0:04:58]} b6 {[%emt 0:06:55]} 23. axb6 {[%emt 0:00:00]} Rxa1 {[%emt 0:00:08]} 24. Rxa1 {[%emt 0:00:00]} cxb6 {[%emt 0:00:09]} 25. Bb4 {[%emt 0:00:00]} b5 {[%emt 0:01:59]} 26. Ba2 {[%emt 0:00:05]} Qh4 {[%emt 0:03:06]} 27. f3 {[%emt 0:00:59]} Ra8 {[%emt 0:01:32]} 28. Bc3 {[%emt 0:09:53]} Bxe4 {[%emt 0:11:52]} 29. fxe4 {[%emt 0:00:23]} Ra3 {[%emt 0:00:10]} 30. d6 {[%emt 0:10:22]} Rxc3 {[%emt 0:03:07]} 31. Qf1 {[%emt 0:00:01]} Qf6 {[%emt 0:09:15]} 0-1

[Event "20th Cvijet Mediterana 2020"]
[Site "Rijeka"]
[Date "2020.03.06"]
[Round "8.1"]
[White "Vujnovic, Patricija"]
[Black "Spiranec, Noemi"]
[Result "1-0"]
[ECO "A01"]
[WhiteElo "2103"]
[BlackElo "2083"]
[Annotator "ChessBase"]
[PlyCount "83"]
[EventDate "2020.03.01"]
[EventType "tourn"]
[EventCountry "CRO"]
[SourceTitle "playchess.com"]
[Source "ChessBase"]
[SourceQuality "1"]
[TimeControl "5400+30"]

1. b3 {[%emt 0:00:00]} e5 {[%emt 0:00:00]} 2. Bb2 {[%emt 0:00:00]} Nc6 {[%emt 0:00:05]} 3. e3 {[%emt 0:00:00]} Nf6 {[%emt 0:01:15]} 4. Bb5 {[%emt 0:00:00]} d6 {[%emt 0:00:32]} 5. d4 {[%emt 0:00:47]} exd4 {[%emt 0:01:48]} 6. Qxd4 {[%emt 0:06:04]} a6 {[%emt 0:03:28]} 7. Bxc6+ {[%emt 0:00:07]} bxc6 {[%emt 0:00:02]} 8. Nc3 {[%emt 0:00:24]} c5 {[%emt 0:04:40]} 9. Qd2 {[%emt 0:05:06]} Bb7 {[%emt 0:02:01]} 10. Nf3 {[%emt 0:00:05]} Be7 {[%emt 0:00:28]} 11. O-O-O {[%emt 0:01:11]} Qd7 {[%emt 0:00:36]} 12. e4 {[%emt 0:09:05]} O-O-O {[%emt 0:02:56]} 13. Rhe1 {[%emt 0:04:49]} Rhe8 {[%emt 0:16:09]} 14. Ng5 {[%emt 0:04:03]} Bf8 {[%emt 0:00:50]} 15. f3 {[%emt 0:03:31]} h6 {[%emt 0:01:03]} 16. Nh3 {[%emt 0:00:06]} Kb8 {[%emt 0:06:24]} 17. Nf4 {[%emt 0:01:51]} Qc8 {[%emt 0:03:23]} 18. Na4 {[%emt 0:19:21]} Nd7 {[%emt 0:01:37]} 19. Nd5 {[%emt 0:03:01]} Ne5 {[%emt 0:04:50]} 20. Qf4 {[%emt 0:06:07]} g5 {[%emt 0:03:52]} 21. Qg3 {[%emt 0:01:10]} Nd7 {[%emt 0:04:59]} 22. Ne3 {[%emt 0:01:54]} Nb6 {[%emt 0:03:01]} 23. Nxb6 {[%emt 0:02:15]} cxb6 {[%emt 0:00:01]} 24. Nd5 {[%emt 0:00:21]} Ka7 {[%emt 0:01:14]} 25. Bf6 {[%emt 0:04:08]} Rd7 {[%emt 0:00:02]} 26. h4 {[%emt 0:01:49]} gxh4 {[%emt 0:00:40]} 27. Qxh4 {[%emt 0:00:04]} Re6 {[%emt 0:02:35]} 28. f4 {[%emt 0:02:50]} Qa8 {[%emt 0:03:41]} 29. f5 {[%emt 0:01:10]} Bxd5 {[%emt 0:01:35]} 30. Rxd5 {[%emt 0:05:35]} Re8 {[%emt 0:00:35]} 31. Red1 {[%emt 0:00:44]} Rc7 {[%emt 0:02:51]} 32. e5 {[%emt 0:03:22]} dxe5 {[%emt 0:02:41]} 33. Bxe5 {[%emt 0:00:01]} Rb7 {[%emt 0:01:02]} 34. Rd8 {[%emt 0:02:05]} Qxd8 {[%emt 0:00:20]} 35. Rxd8 {[%emt 0:00:10]} Be7 {[%emt 0:00:08]} 36. Bf6 {[%emt 0:01:44]} Rxd8 {[%emt 0:00:59]} 37. Bxe7 {[%emt 0:00:09]} Rd4 {[%emt 0:00:32]} 38. Qf6 {[%emt 0:04:22]} Rdd7 {[%emt 0:00:24]} 39. Bf8 {[%emt 0:00:47]} h5 {[%emt 0:00:05]} 40. Qg5 {[%emt 0:02:12]} Rb8 {[%emt 0:00:14]} 41. Bg7 {[%emt 0:00:29]} Rg8 {[%emt 0:00:57]} 42. f6 {[%emt 0:00:15]} 1-0